[Event "Early-Titled-Tuesday-Blitz-January-16-2024"]
[Site "Chess.com"]
[Date "2024.01.16"]
[Round "4"]
[White "I_am_Javi"]
[Black "AmanteDeMoi"]
[Result "1-0"]
[WhiteElo "2771"]
[BlackElo "2563"]
[TimeControl "180+1"]
[EndTime "8:41:55 PST"]
[Termination "I_am_Javi won on time"]

1. e4 {[%clk 0:02:58.1]} 1... g6 {[%clk 0:02:59.8]} 2. d4 {[%clk 0:02:57.7]}
2... Bg7 {[%clk 0:02:59.2]} 3. Nc3 {[%clk 0:02:58.2]} 3... c6 {[%clk 0:02:58.5]}
4. Be3 {[%clk 0:02:58.8]} 4... d5 {[%clk 0:02:58.2]} 5. e5 {[%clk 0:02:59.5]}
5... h5 {[%clk 0:02:57.9]} 6. Bd3 {[%clk 0:02:59.4]} 6... Nh6 {[%clk 0:02:57.6]}
7. Nce2 {[%clk 0:02:59.9]} 7... Bf5 {[%clk 0:02:56.5]} 8. c3 {[%clk 0:03:00.6]}
8... Bxd3 {[%clk 0:02:55.8]} 9. Qxd3 {[%clk 0:03:01.5]} 9... Nf5 {[%clk
0:02:56.6]} 10. Nf3 {[%clk 0:02:55.9]} 10... e6 {[%clk 0:02:56.3]} 11. O-O
{[%clk 0:02:55.6]} 11... Nd7 {[%clk 0:02:55]} 12. Ng3 {[%clk 0:02:55.3]} 12...
Bf8 {[%clk 0:02:43.8]} 13. b4 {[%clk 0:02:53.9]} 13... Be7 {[%clk 0:02:41.9]}
14. a4 {[%clk 0:02:51.1]} 14... Kf8 {[%clk 0:02:25.8]} 15. Rab1 {[%clk
0:02:47.8]} 15... Kg7 {[%clk 0:02:07.4]} 16. Nxf5+ {[%clk 0:02:37.7]} 16... gxf5
{[%clk 0:02:06.2]} 17. b5 {[%clk 0:02:22.9]} 17... c5 {[%clk 0:02:03.4]} 18. c4
{[%clk 0:02:19.2]} 18... dxc4 {[%clk 0:02:02]} 19. Qxc4 {[%clk 0:02:20.1]} 19...
Nb6 {[%clk 0:01:48.4]} 20. Qb3 {[%clk 0:02:17.9]} 20... c4 {[%clk 0:01:46.1]}
21. Qc2 {[%clk 0:02:16.8]} 21... Rc8 {[%clk 0:01:45.4]} 22. d5 {[%clk
0:01:28.1]} 22... Nxd5 {[%clk 0:01:45.2]} 23. Bd4 {[%clk 0:01:28.4]} 23... Rh6
{[%clk 0:01:36.4]} 24. Rfd1 {[%clk 0:01:26.6]} 24... Rg6 {[%clk 0:01:34.3]} 25.
Bxa7 {[%clk 0:01:11.6]} 25... Kh8 {[%clk 0:01:20.2]} 26. Bd4 {[%clk 0:01:07.3]}
26... Qg8 {[%clk 0:01:19.6]} 27. g3 {[%clk 0:01:07.4]} 27... h4 {[%clk
0:01:17.5]} 28. a5 {[%clk 0:00:54.3]} 28... Nf4 {[%clk 0:01:12.1]} 29. a6 {[%clk
0:00:50.2]} 29... hxg3 {[%clk 0:01:09.5]} 30. fxg3 {[%clk 0:00:49.7]} 30...
Rxg3+ {[%clk 0:01:09.6]} 31. Kh1 {[%clk 0:00:22.3]} 31... Rg2 {[%clk 0:00:58.1]}
32. Rd2 {[%clk 0:00:16.6]} 32... Qg4 {[%clk 0:00:33]} 33. Rf1 {[%clk 0:00:15.5]}
33... Rg8 {[%clk 0:00:29.3]} 34. axb7 {[%clk 0:00:15.5]} 34... Rxd2 {[%clk
0:00:15.2]} 35. Qxd2 {[%clk 0:00:16.4]} 35... Nh3 {[%clk 0:00:12.4]} 36. Qe2
{[%clk 0:00:12.6]} 36... Rb8 {[%clk 0:00:03.9]} 37. Qxc4 {[%clk 0:00:05.6]}
37... Nf4 {[%clk 0:00:03.9]} 38. Qc2 {[%clk 0:00:03]} 38... Qh3 {[%clk
0:00:02.4]} 39. Qf2 {[%clk 0:00:02.2]} 39... Rxb7 {[%clk 0:00:02.4]} 40. b6
{[%clk 0:00:02.4]} 40... Rb8 {[%clk 0:00:02.1]} 41. Rg1 {[%clk 0:00:02.5]} 41...
Nd3 {[%clk 0:00:02.1]} 42. Qg3 {[%clk 0:00:02.6]} 1-0

[Event "Early-Titled-Tuesday-Blitz-January-16-2024"]
[Site "Chess.com"]
[Date "2024.01.16"]
[Round "4"]
[White "Nikita_Klepikov"]
[Black "FM_VS99"]
[Result "1-0"]
[WhiteElo "2347"]
[BlackElo "2504"]
[TimeControl "180+1"]
[EndTime "8:41:58 PST"]
[Termination "Nikita_Klepikov won on time"]

1. e4 {[%clk 0:03:00.9]} 1... c5 {[%clk 0:02:59.8]} 2. Nf3 {[%clk 0:03:01]} 2...
g6 {[%clk 0:02:59.5]} 3. d4 {[%clk 0:03:01.5]} 3... cxd4 {[%clk 0:02:59.8]} 4.
Nxd4 {[%clk 0:03:02.4]} 4... Bg7 {[%clk 0:02:59.5]} 5. Nc3 {[%clk 0:03:03]} 5...
Nc6 {[%clk 0:03:00.1]} 6. Be3 {[%clk 0:03:02.6]} 6... Nf6 {[%clk 0:03:00.2]} 7.
Bc4 {[%clk 0:03:03.1]} 7... O-O {[%clk 0:03:00.6]} 8. Bb3 {[%clk 0:03:02.4]}
8... d6 {[%clk 0:03:00.6]} 9. f3 {[%clk 0:03:01.5]} 9... Bd7 {[%clk 0:03:00.9]}
10. Qd2 {[%clk 0:03:01.8]} 10... Nxd4 {[%clk 0:03:01.1]} 11. Bxd4 {[%clk
0:03:01.9]} 11... b5 {[%clk 0:03:01.7]} 12. g4 {[%clk 0:02:59.3]} 12... a5
{[%clk 0:03:00]} 13. a4 {[%clk 0:02:58]} 13... bxa4 {[%clk 0:02:54.1]} 14. Nxa4
{[%clk 0:02:58.4]} 14... Rb8 {[%clk 0:02:51.5]} 15. h4 {[%clk 0:02:58.2]} 15...
Rb4 {[%clk 0:02:36]} 16. Bc3 {[%clk 0:02:50.2]} 16... Nxe4 {[%clk 0:02:33.2]}
17. fxe4 {[%clk 0:02:45]} 17... Rxe4+ {[%clk 0:02:32.9]} 18. Kd1 {[%clk
0:02:38.3]} 18... Bxg4+ {[%clk 0:02:14.5]} 19. Kc1 {[%clk 0:02:37.9]} 19... h5
{[%clk 0:01:49.3]} 20. Bd5 {[%clk 0:02:19.5]} 20... Bxc3 {[%clk 0:01:41.5]} 21.
Nxc3 {[%clk 0:02:13.1]} 21... Re5 {[%clk 0:01:41]} 22. Ra4 {[%clk 0:01:28]}
22... e6 {[%clk 0:01:37.9]} 23. Bb3 {[%clk 0:01:25.9]} 23... Kh7 {[%clk
0:01:29.9]} 24. Ne4 {[%clk 0:01:23.7]} 24... Bf3 {[%clk 0:01:05.4]} 25. Re1
{[%clk 0:00:47.3]} 25... Qxh4 {[%clk 0:01:03.8]} 26. Nf2 {[%clk 0:00:11.1]}
26... Rxe1+ {[%clk 0:00:44.6]} 27. Qxe1 {[%clk 0:00:12]} 27... Qg5+ {[%clk
0:00:44.3]} 28. Kb1 {[%clk 0:00:11.7]} 28... Ra8 {[%clk 0:00:37.3]} 29. c3
{[%clk 0:00:10.9]} 29... Bc6 {[%clk 0:00:34]} 30. Rd4 {[%clk 0:00:10.3]} 30...
a4 {[%clk 0:00:33.4]} 31. Bc2 {[%clk 0:00:09.8]} 31... a3 {[%clk 0:00:33.7]} 32.
b4 {[%clk 0:00:07.5]} 32... a2+ {[%clk 0:00:17.5]} 33. Ka1 {[%clk 0:00:07.8]}
33... Qg3 {[%clk 0:00:09.6]} 34. Rc4 {[%clk 0:00:07.8]} 34... Bd5 {[%clk
0:00:08.5]} 35. Rc7 {[%clk 0:00:08]} 35... Kg8 {[%clk 0:00:07.5]} 36. Qd2 {[%clk
0:00:05]} 36... Qg1+ {[%clk 0:00:04]} 37. Nd1 {[%clk 0:00:05.1]} 37... h4 {[%clk
0:00:02.3]} 38. b5 {[%clk 0:00:05.6]} 38... h3 {[%clk 0:00:02.1]} 39. Qf4 {[%clk
0:00:05.3]} 39... h2 {[%clk 0:00:02.4]} 40. Qxf7+ {[%clk 0:00:05.5]} 1-0

[Event "Early-Titled-Tuesday-Blitz-January-16-2024"]
[Site "Chess.com"]
[Date "2024.01.16"]
[Round "4"]
[White "ChessBliss09"]
[Black "RCone"]
[Result "0-1"]
[WhiteElo "2085"]
[BlackElo "2443"]
[TimeControl "180+1"]
[EndTime "8:42:00 PST"]
[Termination "RCone won by checkmate"]

1. e4 {[%clk 0:03:00.9]} 1... d6 {[%clk 0:02:59.4]} 2. d4 {[%clk 0:03:00.5]}
2... Nf6 {[%clk 0:02:59.9]} 3. Nc3 {[%clk 0:03:00.2]} 3... g6 {[%clk 0:03:00]}
4. Be3 {[%clk 0:02:58.6]} 4... c6 {[%clk 0:02:59.8]} 5. Qd2 {[%clk 0:02:58.8]}
5... b5 {[%clk 0:02:59.7]} 6. a3 {[%clk 0:02:58.3]} 6... Bg7 {[%clk 0:02:52.6]}
7. Bd3 {[%clk 0:02:56.4]} 7... Ng4 {[%clk 0:02:42.1]} 8. f3 {[%clk 0:02:51.3]}
8... Nxe3 {[%clk 0:02:42.1]} 9. Qxe3 {[%clk 0:02:51.9]} 9... O-O {[%clk
0:02:34.4]} 10. Nge2 {[%clk 0:02:51.8]} 10... Nd7 {[%clk 0:02:30]} 11. O-O
{[%clk 0:02:50.5]} 11... Qb6 {[%clk 0:02:25.3]} 12. Kh1 {[%clk 0:02:42.5]} 12...
e5 {[%clk 0:02:25]} 13. Qd2 {[%clk 0:02:03.8]} 13... exd4 {[%clk 0:02:23.4]} 14.
Nd1 {[%clk 0:01:55.2]} 14... Ne5 {[%clk 0:02:08.8]} 15. Nf2 {[%clk 0:01:47.4]}
15... c5 {[%clk 0:01:49.5]} 16. f4 {[%clk 0:01:25]} 16... Nc4 {[%clk 0:01:33.4]}
17. Bxc4 {[%clk 0:01:13.7]} 17... bxc4 {[%clk 0:01:34.3]} 18. Rab1 {[%clk
0:01:02.3]} 18... f5 {[%clk 0:01:33]} 19. b3 {[%clk 0:00:55.7]} 19... c3 {[%clk
0:01:15.9]} 20. Qd3 {[%clk 0:00:48.8]} 20... Ba6 {[%clk 0:01:14.8]} 21. Qf3
{[%clk 0:00:49.5]} 21... Rae8 {[%clk 0:01:06.9]} 22. Rfe1 {[%clk 0:00:42.5]}
22... Bb7 {[%clk 0:01:03.5]} 23. Ng3 {[%clk 0:00:35.5]} 23... Qc6 {[%clk
0:01:01.2]} 24. Re2 {[%clk 0:00:28]} 24... fxe4 {[%clk 0:01:00.8]} 25. Nfxe4
{[%clk 0:00:27.1]} 25... Qc7 {[%clk 0:00:37.2]} 26. Rbe1 {[%clk 0:00:14.7]}
26... Bc6 {[%clk 0:00:35.1]} 27. Qf2 {[%clk 0:00:05.5]} 27... Kh8 {[%clk
0:00:32.8]} 28. a4 {[%clk 0:00:04.7]} 28... a5 {[%clk 0:00:31.7]} 29. Ng5 {[%clk
0:00:04.8]} 29... Rxe2 {[%clk 0:00:27.8]} 30. Rxe2 {[%clk 0:00:05.7]} 30... Bd5
{[%clk 0:00:26.6]} 31. Ne6 {[%clk 0:00:04.8]} 31... Bxe6 {[%clk 0:00:25.5]} 32.
Rxe6 {[%clk 0:00:05.7]} 32... Qf7 {[%clk 0:00:24.3]} 33. Rxd6 {[%clk 0:00:03.9]}
33... Qxf4 {[%clk 0:00:24.8]} 34. Qxf4 {[%clk 0:00:04.1]} 34... Rxf4 {[%clk
0:00:25.5]} 35. Kg1 {[%clk 0:00:04.2]} 35... h6 {[%clk 0:00:22.6]} 36. Rd8+
{[%clk 0:00:04.7]} 36... Kh7 {[%clk 0:00:22]} 37. Rd5 {[%clk 0:00:05.3]} 37...
Bf8 {[%clk 0:00:18.4]} 38. Rd7+ {[%clk 0:00:04.9]} 38... Kh8 {[%clk 0:00:18.7]}
39. Ra7 {[%clk 0:00:05.8]} 39... c4 {[%clk 0:00:17.4]} 40. bxc4 {[%clk
0:00:03.3]} 40... Bb4 {[%clk 0:00:17.5]} 41. Ra8+ {[%clk 0:00:02.8]} 41... Kg7
{[%clk 0:00:17.4]} 42. Ra7+ {[%clk 0:00:03.7]} 42... Kf6 {[%clk 0:00:16.3]} 43.
Ra6+ {[%clk 0:00:04]} 43... Kf7 {[%clk 0:00:16.5]} 44. Ra7+ {[%clk 0:00:03.8]}
44... Ke8 {[%clk 0:00:14.4]} 45. Ra8+ {[%clk 0:00:03.9]} 45... Kd7 {[%clk
0:00:14.2]} 46. Ra7+ {[%clk 0:00:04.1]} 46... Kc8 {[%clk 0:00:14.9]} 47. Ra8+
{[%clk 0:00:04.2]} 47... Kb7 {[%clk 0:00:15.3]} 48. Rd8 {[%clk 0:00:04.8]} 48...
Bc5 {[%clk 0:00:14.2]} 49. Ne2 {[%clk 0:00:03.1]} 49... d3+ {[%clk 0:00:13.7]}
50. Kh1 {[%clk 0:00:02.6]} 50... dxe2 {[%clk 0:00:13.7]} 51. Rd7+ {[%clk
0:00:01.9]} 51... Kc6 {[%clk 0:00:13.4]} 52. g3 {[%clk 0:00:02.2]} 52... e1=Q+
{[%clk 0:00:12.5]} 53. Kg2 {[%clk 0:00:02]} 53... Qf1# {[%clk 0:00:13.4]} 0-1

[Event "Early-Titled-Tuesday-Blitz-January-16-2024"]
[Site "Chess.com"]
[Date "2024.01.16"]
[Round "4"]
[White "Alexei_Gubajdullin"]
[Black "Nechitaylo_Nikita"]
[Result "1/2-1/2"]
[WhiteElo "2629"]
[BlackElo "2326"]
[TimeControl "180+1"]
[EndTime "8:42:01 PST"]
[Termination "Game drawn - insufficient material"]

1. d4 {[%clk 0:03:00.1]} 1... Nf6 {[%clk 0:02:59.8]} 2. Nf3 {[%clk 0:02:59.7]}
2... e6 {[%clk 0:03:00.1]} 3. Bf4 {[%clk 0:02:59.5]} 3... d5 {[%clk 0:03:00.3]}
4. Nbd2 {[%clk 0:02:59]} 4... Bd6 {[%clk 0:02:59.7]} 5. Bg3 {[%clk 0:02:55.5]}
5... O-O {[%clk 0:02:58.3]} 6. e3 {[%clk 0:02:55.6]} 6... c5 {[%clk 0:02:59]} 7.
Bd3 {[%clk 0:02:54.9]} 7... Qc7 {[%clk 0:02:59.6]} 8. dxc5 {[%clk 0:02:46.5]}
8... Qxc5 {[%clk 0:02:55.1]} 9. c4 {[%clk 0:02:44]} 9... Nc6 {[%clk 0:02:41.6]}
10. cxd5 {[%clk 0:02:37.7]} 10... Qxd5 {[%clk 0:02:25.1]} 11. Nc4 {[%clk
0:02:23.2]} 11... Bxg3 {[%clk 0:02:16]} 12. hxg3 {[%clk 0:02:22.7]} 12... Rd8
{[%clk 0:01:57.1]} 13. Be2 {[%clk 0:01:49]} 13... b5 {[%clk 0:01:43]} 14. Qxd5
{[%clk 0:01:44.4]} 14... Rxd5 {[%clk 0:01:43.9]} 15. Ncd2 {[%clk 0:01:33.7]}
15... Bb7 {[%clk 0:01:00.9]} 16. Rc1 {[%clk 0:01:30.3]} 16... a6 {[%clk
0:00:50.4]} 17. e4 {[%clk 0:01:26.5]} 17... Rd7 {[%clk 0:00:45.6]} 18. e5 {[%clk
0:01:21.5]} 18... Ng4 {[%clk 0:00:23.1]} 19. Rc5 {[%clk 0:01:18.3]} 19... Rd5
{[%clk 0:00:20.8]} 20. Rxd5 {[%clk 0:01:11.6]} 20... exd5 {[%clk 0:00:21.7]} 21.
e6 {[%clk 0:01:01.3]} 21... fxe6 {[%clk 0:00:20]} 22. Ng5 {[%clk 0:01:01.3]}
22... Nf6 {[%clk 0:00:11]} 23. Nxe6 {[%clk 0:01:00.5]} 23... Re8 {[%clk
0:00:11.1]} 24. Nc5 {[%clk 0:00:59.3]} 24... Nd4 {[%clk 0:00:04.3]} 25. Nxb7
{[%clk 0:00:58.4]} 25... Rxe2+ {[%clk 0:00:04.2]} 26. Kd1 {[%clk 0:00:58.4]}
26... Rxf2 {[%clk 0:00:04.4]} 27. Rh4 {[%clk 0:00:57.6]} 27... Ne6 {[%clk
0:00:03]} 28. a4 {[%clk 0:00:53.7]} 28... Rxg2 {[%clk 0:00:02.7]} 29. axb5
{[%clk 0:00:52.9]} 29... axb5 {[%clk 0:00:03.6]} 30. Rb4 {[%clk 0:00:53.1]}
30... Nc7 {[%clk 0:00:02.5]} 31. Rb3 {[%clk 0:00:48.5]} 31... Ne4 {[%clk
0:00:02.1]} 32. Nxe4 {[%clk 0:00:46.4]} 32... dxe4 {[%clk 0:00:03]} 33. Rc3
{[%clk 0:00:46.8]} 33... Nd5 {[%clk 0:00:03]} 34. Rc8+ {[%clk 0:00:46.4]} 34...
Kf7 {[%clk 0:00:03.5]} 35. Nd6+ {[%clk 0:00:46.9]} 35... Ke6 {[%clk 0:00:03.7]}
36. Nxe4 {[%clk 0:00:47]} 36... Ke5 {[%clk 0:00:03.1]} 37. Re8+ {[%clk
0:00:45.8]} 37... Kd4 {[%clk 0:00:03.5]} 38. Kc1 {[%clk 0:00:45.5]} 38... Rg1+
{[%clk 0:00:02.4]} 39. Kc2 {[%clk 0:00:45.5]} 39... Rg2+ {[%clk 0:00:03]} 40.
Kb3 {[%clk 0:00:45]} 40... Re2 {[%clk 0:00:02.9]} 41. Rg8 {[%clk 0:00:43.1]}
41... Rxe4 {[%clk 0:00:02.9]} 42. Rxg7 {[%clk 0:00:43.6]} 42... h5 {[%clk
0:00:03.5]} 43. Kc2 {[%clk 0:00:42.4]} 43... Rg4 {[%clk 0:00:03.4]} 44. Rh7
{[%clk 0:00:41.4]} 44... Rxg3 {[%clk 0:00:02]} 45. Rxh5 {[%clk 0:00:41.4]} 45...
Nb4+ {[%clk 0:00:01.6]} 46. Kc1 {[%clk 0:00:41.3]} 46... Rg1+ {[%clk 0:00:01.6]}
47. Kd2 {[%clk 0:00:41.2]} 47... Rg2+ {[%clk 0:00:02.1]} 48. Kd1 {[%clk
0:00:40.1]} 48... Kd3 {[%clk 0:00:02.1]} 49. Rh3+ {[%clk 0:00:38.3]} 49... Kd4
{[%clk 0:00:02.7]} 50. Rh5 {[%clk 0:00:37.5]} 50... Rxb2 {[%clk 0:00:02.2]} 51.
Rxb5 {[%clk 0:00:36.3]} 51... Kc3 {[%clk 0:00:01.8]} 52. Rc5+ {[%clk 0:00:34.5]}
52... Kd3 {[%clk 0:00:02.4]} 53. Kc1 {[%clk 0:00:34.6]} 53... Rf2 {[%clk
0:00:02]} 54. Rc8 {[%clk 0:00:33.8]} 54... Na2+ {[%clk 0:00:02.5]} 55. Kd1
{[%clk 0:00:31.2]} 55... Nc3+ {[%clk 0:00:02.1]} 56. Ke1 {[%clk 0:00:31.1]}
56... Re2+ {[%clk 0:00:02]} 57. Kf1 {[%clk 0:00:31]} 57... Ke3 {[%clk
0:00:01.7]} 58. Re8+ {[%clk 0:00:30.5]} 58... Ne4 {[%clk 0:00:02.2]} 59. Rxe4+
{[%clk 0:00:29.9]} 59... Kxe4 {[%clk 0:00:03.1]} 60. Kxe2 {[%clk 0:00:30.2]}
1/2-1/2

[Event "Early-Titled-Tuesday-Blitz-January-16-2024"]
[Site "Chess.com"]
[Date "2024.01.16"]
[Round "4"]
[White "GrumbleBruno"]
[Black "Chiquitita23"]
[Result "1-0"]
[WhiteElo "2464"]
[BlackElo "2181"]
[TimeControl "180+1"]
[EndTime "8:42:02 PST"]
[Termination "GrumbleBruno won on time"]

1. e4 {[%clk 0:03:00.9]} 1... e5 {[%clk 0:02:58.8]} 2. Nf3 {[%clk 0:03:00.1]}
2... Nc6 {[%clk 0:02:59]} 3. Bb5 {[%clk 0:03:00.4]} 3... Nge7 {[%clk 0:02:59.2]}
4. O-O {[%clk 0:02:58.5]} 4... Ng6 {[%clk 0:02:59]} 5. d4 {[%clk 0:02:56]} 5...
exd4 {[%clk 0:02:59.1]} 6. Nxd4 {[%clk 0:02:55.3]} 6... Bc5 {[%clk 0:02:59.2]}
7. Nb3 {[%clk 0:02:54.3]} 7... Bb6 {[%clk 0:02:58.5]} 8. Nc3 {[%clk 0:02:54.5]}
8... O-O {[%clk 0:02:55.5]} 9. Nd5 {[%clk 0:02:54.3]} 9... Nce7 {[%clk
0:02:55.8]} 10. Nxb6 {[%clk 0:02:52.6]} 10... axb6 {[%clk 0:02:56.7]} 11. f4
{[%clk 0:02:51.6]} 11... c6 {[%clk 0:02:56.5]} 12. Bd3 {[%clk 0:02:50.7]} 12...
d5 {[%clk 0:02:55.9]} 13. f5 {[%clk 0:02:50.4]} 13... Ne5 {[%clk 0:02:55.7]} 14.
f6 {[%clk 0:02:49.7]} 14... gxf6 {[%clk 0:02:51.8]} 15. Bh6 {[%clk 0:02:43.7]}
15... Re8 {[%clk 0:02:49.1]} 16. Qe1 {[%clk 0:01:39.7]} 16... dxe4 {[%clk
0:02:19.7]} 17. Bxe4 {[%clk 0:01:35.5]} 17... N7g6 {[%clk 0:02:02.4]} 18. Rd1
{[%clk 0:01:14]} 18... Qe7 {[%clk 0:01:47.4]} 19. Qg3 {[%clk 0:01:08.2]} 19...
Rxa2 {[%clk 0:01:31.7]} 20. Nd4 {[%clk 0:00:42.6]} 20... Ng4 {[%clk 0:01:23.8]}
21. Rfe1 {[%clk 0:00:39.8]} 21... Qc5 {[%clk 0:01:04.9]} 22. Bc1 {[%clk
0:00:25.1]} 22... f5 {[%clk 0:00:43.5]} 23. b4 {[%clk 0:00:21.5]} 23... Qxb4
{[%clk 0:00:22.7]} 24. c3 {[%clk 0:00:21.6]} 24... Qc5 {[%clk 0:00:19.1]} 25.
Bb1 {[%clk 0:00:20.7]} 25... Ree2 {[%clk 0:00:09.8]} 26. Rxe2 {[%clk 0:00:18.7]}
26... Rxe2 {[%clk 0:00:09.3]} 27. Qf3 {[%clk 0:00:17]} 27... N6e5 {[%clk
0:00:04.7]} 28. Qxe2 {[%clk 0:00:16]} 28... Be6 {[%clk 0:00:03.1]} 29. Be3
{[%clk 0:00:14.7]} 29... Bc4 {[%clk 0:00:03.5]} 30. Qe1 {[%clk 0:00:13.9]} 30...
Nxe3 {[%clk 0:00:03.5]} 31. Qxe3 {[%clk 0:00:13.6]} 31... Ng4 {[%clk 0:00:03.9]}
32. Qe8+ {[%clk 0:00:13.3]} 32... Kg7 {[%clk 0:00:03.7]} 33. Qe1 {[%clk
0:00:10.3]} 33... b5 {[%clk 0:00:03.2]} 34. Kh1 {[%clk 0:00:08.1]} 34... Kg6
{[%clk 0:00:03]} 35. h3 {[%clk 0:00:08.4]} 35... Nf6 {[%clk 0:00:03.2]} 36.
Bxf5+ {[%clk 0:00:07.4]} 36... Kg7 {[%clk 0:00:02.2]} 37. Qg3+ {[%clk
0:00:07.9]} 37... Kf8 {[%clk 0:00:02.2]} 38. Re1 {[%clk 0:00:08.1]} 38... b4
{[%clk 0:00:02.3]} 39. Qg5 {[%clk 0:00:07.6]} 39... bxc3 {[%clk 0:00:02.4]} 40.
Qh6+ {[%clk 0:00:07.8]} 40... Kg8 {[%clk 0:00:01.2]} 41. Qg5+ {[%clk 0:00:08.2]}
41... Kf8 {[%clk 0:00:01.4]} 42. Qe3 {[%clk 0:00:04.6]} 42... c2 {[%clk
0:00:01.8]} 43. Nxc2 {[%clk 0:00:02.2]} 43... Qxe3 {[%clk 0:00:01.7]} 44. Nxe3
{[%clk 0:00:02.2]} 44... Bd5 {[%clk 0:00:02.1]} 45. Nxd5 {[%clk 0:00:01.8]}
45... Nxd5 {[%clk 0:00:03]} 46. Bc8 {[%clk 0:00:01.7]} 46... b5 {[%clk 0:00:03]}
47. Bb7 {[%clk 0:00:02.3]} 47... Nb4 {[%clk 0:00:02.6]} 48. Rc1 {[%clk
0:00:01.8]} 48... c5 {[%clk 0:00:03.2]} 49. Rxc5 {[%clk 0:00:01.1]} 1-0

[Event "Early-Titled-Tuesday-Blitz-January-16-2024"]
[Site "Chess.com"]
[Date "2024.01.16"]
[Round "4"]
[White "chess_blitz00"]
[Black "mertfelin"]
[Result "1-0"]
[WhiteElo "2479"]
[BlackElo "2226"]
[TimeControl "180+1"]
[EndTime "8:42:05 PST"]
[Termination "chess_blitz00 won by resignation"]

1. a3 {[%clk 0:03:00.9]} 1... d5 {[%clk 0:02:59.5]} 2. Nf3 {[%clk 0:03:00.8]}
2... Nf6 {[%clk 0:02:59.4]} 3. e3 {[%clk 0:03:00.8]} 3... e6 {[%clk 0:02:59.4]}
4. b4 {[%clk 0:03:00.9]} 4... Be7 {[%clk 0:02:58.1]} 5. Bb2 {[%clk 0:03:01]}
5... O-O {[%clk 0:02:57.6]} 6. c4 {[%clk 0:03:00.8]} 6... b6 {[%clk 0:02:55.5]}
7. Nc3 {[%clk 0:02:54.3]} 7... Bb7 {[%clk 0:02:55.5]} 8. Qc2 {[%clk 0:02:49.5]}
8... Nbd7 {[%clk 0:02:51.8]} 9. g4 {[%clk 0:02:41.9]} 9... Ne4 {[%clk
0:02:46.8]} 10. Bd3 {[%clk 0:02:40.1]} 10... Bf6 {[%clk 0:02:44]} 11. g5 {[%clk
0:02:34.1]} 11... Bxc3 {[%clk 0:02:44.4]} 12. Bxc3 {[%clk 0:02:27.8]} 12... Qe7
{[%clk 0:01:56.7]} 13. h4 {[%clk 0:02:26.9]} 13... e5 {[%clk 0:01:55.8]} 14.
cxd5 {[%clk 0:02:25.6]} 14... Nxc3 {[%clk 0:01:55.7]} 15. Bxh7+ {[%clk
0:02:24.9]} 15... Kh8 {[%clk 0:01:56.1]} 16. dxc3 {[%clk 0:02:25.1]} 16... Bxd5
{[%clk 0:01:55.5]} 17. Be4 {[%clk 0:02:20.7]} 17... Bxe4 {[%clk 0:01:51]} 18.
Qxe4 {[%clk 0:02:21.6]} 18... c5 {[%clk 0:01:45.3]} 19. h5 {[%clk 0:02:11.2]}
19... cxb4 {[%clk 0:01:41]} 20. axb4 {[%clk 0:02:07.7]} 20... a5 {[%clk
0:01:31.7]} 21. bxa5 {[%clk 0:02:01.7]} 21... Nc5 {[%clk 0:01:31.8]} 22. Qc2
{[%clk 0:02:00]} 22... e4 {[%clk 0:01:31.6]} 23. Nd4 {[%clk 0:01:57.8]} 23...
Nd3+ {[%clk 0:01:31.8]} 24. Kf1 {[%clk 0:01:55.9]} 24... Qxg5 {[%clk 0:01:31.8]}
25. f4 {[%clk 0:01:45.1]} 25... exf3 {[%clk 0:01:24.6]} 26. Nxf3 {[%clk
0:01:27.4]} 26... Qxe3 {[%clk 0:01:21.7]} 27. Qe2 {[%clk 0:01:26.4]} 27... Rfe8
{[%clk 0:00:51.9]} 28. Qxe3 {[%clk 0:01:14.8]} 28... Rxe3 {[%clk 0:00:51.8]} 29.
Ng5 {[%clk 0:01:11.9]} 29... f6 {[%clk 0:00:37.8]} 30. Rh3 {[%clk 0:00:22.9]}
30... Rxh3 {[%clk 0:00:29.1]} 31. Nxh3 {[%clk 0:00:23.8]} 31... bxa5 {[%clk
0:00:29.8]} 32. Ke2 {[%clk 0:00:22]} 32... Ne5 {[%clk 0:00:30.3]} 33. Nf4 {[%clk
0:00:20.2]} 33... a4 {[%clk 0:00:28.2]} 34. Ke3 {[%clk 0:00:14.9]} 34... Ra5
{[%clk 0:00:26.9]} 35. Kd4 {[%clk 0:00:14.1]} 35... Nc6+ {[%clk 0:00:23.1]} 36.
Kd3 {[%clk 0:00:11.2]} 36... a3 {[%clk 0:00:20.1]} 37. c4 {[%clk 0:00:03.2]}
37... Ra4 {[%clk 0:00:19.3]} 38. Kc3 {[%clk 0:00:02.7]} 38... Ne5 {[%clk
0:00:18.8]} 39. Ng6+ {[%clk 0:00:02.2]} 39... Kg8 {[%clk 0:00:15.1]} 40. Nxe5
{[%clk 0:00:01.5]} 40... fxe5 {[%clk 0:00:16]} 41. Kb3 {[%clk 0:00:01.3]} 41...
Ra8 {[%clk 0:00:15]} 42. Ka2 {[%clk 0:00:01.6]} 42... Kh7 {[%clk 0:00:10.7]} 43.
Re1 {[%clk 0:00:01.9]} 43... Re8 {[%clk 0:00:09.1]} 44. Kxa3 {[%clk 0:00:02.4]}
44... Kh6 {[%clk 0:00:09.8]} 45. Kb4 {[%clk 0:00:02.9]} 45... Kxh5 {[%clk
0:00:10.2]} 46. c5 {[%clk 0:00:03.3]} 46... Kg5 {[%clk 0:00:10.5]} 47. c6 {[%clk
0:00:03.7]} 47... Kf6 {[%clk 0:00:10.6]} 48. Kc5 {[%clk 0:00:04.2]} 48... Ke6
{[%clk 0:00:11]} 49. Kb6 {[%clk 0:00:04.1]} 49... Kd6 {[%clk 0:00:10.1]} 50.
Rd1+ {[%clk 0:00:04.1]} 50... Ke6 {[%clk 0:00:10.6]} 51. c7 {[%clk 0:00:03.4]}
51... e4 {[%clk 0:00:10.6]} 52. Rd8 {[%clk 0:00:03]} 1-0